Department Family,Entity,Date Paid,Expense Type,Expenses Area,Supplier Name,Transaction Reference,Total,VAT Registration Number,LookUp
Department Family,Entity,Date Paid,Expense Type,Expenses Area,Supplier Name,Transaction Reference,Total,VAT Registration Number,0
Department of Health,Imperial College Healthcare NHS Trust,03/01/2017,Buildings-Add(Prof Fee)-Purch,Capital Summary,Lowe Build Ltd,3492491,"207,897.60",Optional requirement only,0
Department of Health,Imperial College Healthcare NHS Trust,03/01/2017,Clinical Managed Service Contr,Pathology,Beckman Coulter Uk Ltd,3483493,"52,114.84",Optional requirement only,0
Department of Health,Imperial College Healthcare NHS Trust,03/01/2017,Clinical Managed Service Contr,Pathology,Genmed.Me Ltd,3482867,"626,341.42",Optional requirement only,0
Department of Health,Imperial College Healthcare NHS Trust,03/01/2017,Computer Software/License,Pathology,Sunquest Information Systems (Europe) Ltd,3482864,"74,578.80",Optional requirement only,0
Department of Health,Imperial College Healthcare NHS Trust,03/01/2017,Drugs Other,Div Of Women & Clin Support,Lloyds Retail Chemists Ltd,3492471,"3,626,826.89",Optional requirement only,0
Department of Health,Imperial College Healthcare NHS Trust,03/01/2017,Ext Contract - Patient Travel,Div Of Med & Integrated Care,Dhl Supply Chain  (Former Excel),3492921,"766,622.90",Optional requirement only,0
Department of Health,Imperial College Healthcare NHS Trust,03/01/2017,Ext Contract - Patient Travel,"Div Of Surg, Cardiov & Cancer",Dhl Supply Chain  (Former Excel),3492921,"218,167.99",Optional requirement only,0
Department of Health,Imperial College Healthcare NHS Trust,03/01/2017,Ext Contract - Patient Travel,Finance Directorate,Dhl Supply Chain  (Former Excel),3492921,"42,304.11",Optional requirement only,0
Department of Health,Imperial College Healthcare NHS Trust,03/01/2017,Jac - Stock,Stock,Bayer Plc,3485574,"31,464.00",Optional requirement only,Stock
Department of Health,Imperial College Healthcare NHS Trust,03/01/2017,Jac - Stock,Stock,Qualasept Ltd,3485813,"136,886.40",Optional requirement only,Stock
Department of Health,Imperial College Healthcare NHS Trust,03/01/2017,Jac - Stock,Stock,Qualasept Ltd,3490429,"134,244.00",Optional requirement only,Stock
Department of Health,Imperial College Healthcare NHS Trust,03/01/2017,Jac - Stock,Stock,Roche Products Ltd,3490422,"121,542.00",Optional requirement only,Stock
Department of Health,Imperial College Healthcare NHS Trust,03/01/2017,Legal Fees,Other Hq Departments,Capsticks Solicitors Llp,3492427,"33,611.81",Optional requirement only,0
Department of Health,Imperial College Healthcare NHS Trust,03/01/2017,Med & Surg Maint Contract,Pathology,Cellpath,3480839,"97,129.62",Optional requirement only,0
Department of Health,Imperial College Healthcare NHS Trust,03/01/2017,Other Gen Supplies & Srv,Information & Comms Technology,Crown Records Management,3492464,"42,495.25",Optional requirement only,0
Department of Health,Imperial College Healthcare NHS Trust,03/01/2017,P & M-Additions-Purchased,Capital Summary,Nhs Supply Chain,3488687,"142,054.51",Optional requirement only,0
Department of Health,Imperial College Healthcare NHS Trust,05/01/2017,Acton Housing Association,Housing Deductions,A2dominion Housing Group Ltd,3494508,"191,705.46",Optional requirement only,Housing Deductions
Department of Health,Imperial College Healthcare NHS Trust,05/01/2017,Buildings-Add(Prof Fee)-Purch,Capital Summary,Aecom,3480925,"58,132.50",Optional requirement only,0
Department of Health,Imperial College Healthcare NHS Trust,05/01/2017,Car Salary Sacrifice,Ichnt Balance Sheet,Tuskerdirect Ltd,3494511,"30,004.05",Optional requirement only,0
Department of Health,Imperial College Healthcare NHS Trust,05/01/2017,Ext Contr Catering,Nursing Directorate,Sodexo Limited,3493348,"43,385.59",Optional requirement only,0
Department of Health,Imperial College Healthcare NHS Trust,05/01/2017,Ext Contr Catering,Nursing Directorate,Sodexo Limited,3493352,"43,385.59",Optional requirement only,0
Department of Health,Imperial College Healthcare NHS Trust,05/01/2017,Ext Contr Catering,Nursing Directorate,Sodexo Limited,3493353,"43,385.59",Optional requirement only,0
Department of Health,Imperial College Healthcare NHS Trust,05/01/2017,Ext Contr Catering,Nursing Directorate,Sodexo Limited,3493354,"43,385.59",Optional requirement only,0
Department of Health,Imperial College Healthcare NHS Trust,05/01/2017,Jac - Stock,Stock,Roche Products Ltd,3489502,"78,220.80",Optional requirement only,Stock
Department of Health,Imperial College Healthcare NHS Trust,05/01/2017,Med & Surg Equip Leases,Nursing Directorate,Arjo Huntleigh,3494060,"404,633.15",Optional requirement only,0
Department of Health,Imperial College Healthcare NHS Trust,05/01/2017,Med & Surg Equip Leases,Nursing Directorate,Huntleigh Healthcare Ltd,3494303,"774,119.74",Optional requirement only,0
Department of Health,Imperial College Healthcare NHS Trust,05/01/2017,Med & Surg Equip Repair,Nursing Directorate,Ge Medical Systems Limited,3494098,"737,661.60",Optional requirement only,0
Department of Health,Imperial College Healthcare NHS Trust,05/01/2017,Med & Surg Equip Repair,Nursing Directorate,Ge Medical Systems Limited,3494099,"740,031.60",Optional requirement only,0
Department of Health,Imperial College Healthcare NHS Trust,05/01/2017,Med & Surg Equip Repair,Nursing Directorate,Ge Medical Systems Limited,3494100,"770,006.40",Optional requirement only,0
Department of Health,Imperial College Healthcare NHS Trust,05/01/2017,Med & Surg Equip Repair,Nursing Directorate,Ge Medical Systems Limited,3494101,"746,882.40",Optional requirement only,0
Department of Health,Imperial College Healthcare NHS Trust,05/01/2017,Med & Surg Maint Contract,Div Of Med & Integrated Care,Nhs Supply Chain,3494088,"51,033.02",Optional requirement only,0
Department of Health,Imperial College Healthcare NHS Trust,05/01/2017,P & M-Additions-Purchased,Capital Summary,B Braun Avitum Ltd,3492439,"34,560.00",Optional requirement only,0
Department of Health,Imperial College Healthcare NHS Trust,05/01/2017,P & M-Additions-Purchased,Capital Summary,B Braun Avitum Ltd,3492786,"46,080.00",Optional requirement only,0
Department of Health,Imperial College Healthcare NHS Trust,05/01/2017,P & M-Additions-Purchased,Capital Summary,Heidelberg Engineering Limited,3494105,"62,400.00",Optional requirement only,0
Department of Health,Imperial College Healthcare NHS Trust,05/01/2017,Season Ticket Cr Abellio,Ichnt Balance Sheet,Abellio Transport Holdings Ltd,3493985,"25,905.20",Optional requirement only,0
Department of Health,Imperial College Healthcare NHS Trust,05/01/2017,Season Ticket Cr Abellio,Ichnt Balance Sheet,Abellio Transport Holdings Ltd,3493987,"30,817.70",Optional requirement only,0
Department of Health,Imperial College Healthcare NHS Trust,05/01/2017,Srvcsrecd-Foundationtrust,Pathology,Chelsea And  Westminster Hospital Nhs,3488045,"62,798.00",Optional requirement only,0
Department of Health,Imperial College Healthcare NHS Trust,05/01/2017,Supplies Issues Recharges,Stock,Nhs Supply Chain,3488650,"110,420.24",Optional requirement only,Stock
Department of Health,Imperial College Healthcare NHS Trust,05/01/2017,Supplies Issues Recharges,Stock,Nhs Supply Chain,3488651,"133,439.77",Optional requirement only,Stock
Department of Health,Imperial College Healthcare NHS Trust,05/01/2017,Supplies Issues Recharges,Stock,Nhs Supply Chain,3488653,"147,011.62",Optional requirement only,Stock
Department of Health,Imperial College Healthcare NHS Trust,05/01/2017,Supplies Issues Recharges,Stock,Nhs Supply Chain,3488654,"124,355.76",Optional requirement only,Stock
Department of Health,Imperial College Healthcare NHS Trust,05/01/2017,Supplies Issues Recharges,Stock,Nhs Supply Chain,3488655,"146,529.18",Optional requirement only,Stock
Department of Health,Imperial College Healthcare NHS Trust,05/01/2017,Supplies Issues Recharges,Stock,Nhs Supply Chain,3488656,"107,337.48",Optional requirement only,Stock
Department of Health,Imperial College Healthcare NHS Trust,05/01/2017,Supplies Issues Recharges,Stock,Nhs Supply Chain,3488659,"135,002.10",Optional requirement only,Stock
Department of Health,Imperial College Healthcare NHS Trust,05/01/2017,Supplies Issues Recharges,Stock,Nhs Supply Chain,3488661,"100,795.05",Optional requirement only,Stock
Department of Health,Imperial College Healthcare NHS Trust,05/01/2017,Supplies Issues Recharges,Stock,Nhs Supply Chain,3488662,"144,934.00",Optional requirement only,Stock
Department of Health,Imperial College Healthcare NHS Trust,05/01/2017,Supplies Issues Recharges,Stock,Nhs Supply Chain,3488667,"107,570.28",Optional requirement only,Stock
Department of Health,Imperial College Healthcare NHS Trust,05/01/2017,Supplies Issues Recharges,Stock,Nhs Supply Chain,3488668,"100,739.31",Optional requirement only,Stock
Department of Health,Imperial College Healthcare NHS Trust,05/01/2017,Supplies Issues Recharges,Stock,Nhs Supply Chain,3488669,"126,653.79",Optional requirement only,Stock
Department of Health,Imperial College Healthcare NHS Trust,05/01/2017,Supplies Issues Recharges,Stock,Nhs Supply Chain,3488672,"137,950.88",Optional requirement only,Stock
Department of Health,Imperial College Healthcare NHS Trust,05/01/2017,Supplies Issues Recharges,Stock,Nhs Supply Chain,3488676,"111,858.45",Optional requirement only,Stock
Department of Health,Imperial College Healthcare NHS Trust,05/01/2017,Thames Valley Housing Assoc,Housing Deductions,Thames Valley Charitable Housing,3494509,"106,575.86",Optional requirement only,Housing Deductions
Department of Health,Imperial College Healthcare NHS Trust,10/01/2017,Agency Admin & Clerical,"Div Of Surg, Cardiov & Cancer",Ideal Health Consultants Ltd,3495454,"72,204.17",Optional requirement only,0
Department of Health,Imperial College Healthcare NHS Trust,10/01/2017,Agency Admin & Clerical,"Div Of Surg, Cardiov & Cancer",Ideal Health Consultants Ltd,3495458,"76,828.85",Optional requirement only,0
Department of Health,Imperial College Healthcare NHS Trust,10/01/2017,Agency Nursing: Qualified,Div Of Med & Integrated Care,Reed,3494517,"191,653.15",Optional requirement only,0
Department of Health,Imperial College Healthcare NHS Trust,10/01/2017,Agency Nursing: Qualified,Div Of Med & Integrated Care,Reed,3495934,"119,475.15",Optional requirement only,0
Department of Health,Imperial College Healthcare NHS Trust,10/01/2017,Agency Nursing: Qualified,"Div Of Surg, Cardiov & Cancer",Reed,3494517,"187,275.63",Optional requirement only,0
Department of Health,Imperial College Healthcare NHS Trust,10/01/2017,Agency Nursing: Qualified,"Div Of Surg, Cardiov & Cancer",Reed,3495934,"129,979.69",Optional requirement only,0
Department of Health,Imperial College Healthcare NHS Trust,10/01/2017,Agency Nursing: Qualified,Div Of Women & Clin Support,Reed,3494517,"100,795.55",Optional requirement only,0
Department of Health,Imperial College Healthcare NHS Trust,10/01/2017,Agency Nursing: Qualified,Div Of Women & Clin Support,Reed,3495934,"72,781.91",Optional requirement only,0
Department of Health,Imperial College Healthcare NHS Trust,10/01/2017,Agency Scient & Prof Qualified,"Div Of Surg, Cardiov & Cancer",Reed,3494513,"54,813.44",Optional requirement only,0
Department of Health,Imperial College Healthcare NHS Trust,10/01/2017,Agency Scient & Prof Qualified,Div Of Women & Clin Support,Reed,3494513,"35,873.60",Optional requirement only,0
Department of Health,Imperial College Healthcare NHS Trust,10/01/2017,Agency Scient & Prof Qualified,Div Of Women & Clin Support,Reed,3495921,"38,168.94",Optional requirement only,0
Department of Health,Imperial College Healthcare NHS Trust,10/01/2017,Agency Scient & Prof Qualified,Pathology,Reed,3494513,"50,270.63",Optional requirement only,0
Department of Health,Imperial College Healthcare NHS Trust,10/01/2017,Agency Scient & Prof Qualified,Pathology,Reed,3495921,"52,001.53",Optional requirement only,0
Department of Health,Imperial College Healthcare NHS Trust,10/01/2017,Agency Senior Manager,"Div Of Surg, Cardiov & Cancer",Ideal Health Consultants Ltd,3495453,"87,397.14",Optional requirement only,0
Department of Health,Imperial College Healthcare NHS Trust,10/01/2017,Agency Senior Manager,"Div Of Surg, Cardiov & Cancer",Ideal Health Consultants Ltd,3495456,"83,257.86",Optional requirement only,0
Department of Health,Imperial College Healthcare NHS Trust,10/01/2017,Buildings-Additions-Purchased,Capital Summary,Cuffe  Plc,3494977,"532,829.57",Optional requirement only,0
Department of Health,Imperial College Healthcare NHS Trust,10/01/2017,Buildings-Additions-Purchased,Capital Summary,M&J Group (Construction & Roofin) Ltd [Cs],3495698,"64,908.65",Optional requirement only,0
Department of Health,Imperial College Healthcare NHS Trust,10/01/2017,Buildings-Additions-Purchased,Capital Summary,M&J Group (Construction & Roofin) Ltd [Cs],3495858,"48,626.45",Optional requirement only,0
Department of Health,Imperial College Healthcare NHS Trust,10/01/2017,Buildings-Add(Prof Fee)-Purch,Capital Summary,Dp9,3492942,"76,896.00",Optional requirement only,0
Department of Health,Imperial College Healthcare NHS Trust,10/01/2017,Clinical Managed Service Contr,Pathology,Leica Microsystems (Uk) Ltd,3482860,"43,424.93",Optional requirement only,0
Department of Health,Imperial College Healthcare NHS Trust,10/01/2017,Computer Software/License,Human Resources,Allocate Software Plc,3494188,"62,985.60",Optional requirement only,0
Department of Health,Imperial College Healthcare NHS Trust,10/01/2017,Cx-Hh Consultant Load,Ichnt Balance Sheet,Dr Andrew Wright,3495975,"93,177.90",Optional requirement only,0
Department of Health,Imperial College Healthcare NHS Trust,10/01/2017,Equip Maint Contracts,Pathology,Leica Microsystems (Uk) Ltd,3495282,"77,637.61",Optional requirement only,0
Department of Health,Imperial College Healthcare NHS Trust,10/01/2017,Isotopes,Div Of Women & Clin Support,Siemens Healthcare Plc,3495650,"33,072.00",Optional requirement only,0
Department of Health,Imperial College Healthcare NHS Trust,10/01/2017,Items Pending Investigation,Ichnt Balance Sheet,Nhs Property Services Ltd,3480042,"33,271.57",Optional requirement only,0
Department of Health,Imperial College Healthcare NHS Trust,10/01/2017,Items Pending Investigation,Ichnt Balance Sheet,Nhs Property Services Ltd,3480136,"169,885.05",Optional requirement only,0
Department of Health,Imperial College Healthcare NHS Trust,10/01/2017,Items Pending Investigation,Ichnt Balance Sheet,Nhs Property Services Ltd,3480137,"234,048.00",Optional requirement only,0
Department of Health,Imperial College Healthcare NHS Trust,10/01/2017,Items Pending Investigation,Ichnt Balance Sheet,Nhs Property Services Ltd,3480150,"78,000.00",Optional requirement only,0
Department of Health,Imperial College Healthcare NHS Trust,10/01/2017,Items Pending Investigation,Ichnt Balance Sheet,Nhs Property Services Ltd,3494389,"56,628.35",Optional requirement only,0
Department of Health,Imperial College Healthcare NHS Trust,10/01/2017,Items Pending Investigation,Ichnt Balance Sheet,Nhs Property Services Ltd,3496196,"78,000.00",Optional requirement only,0
Department of Health,Imperial College Healthcare NHS Trust,10/01/2017,It Eqpt-Additions,Capital Summary,Sdx Services Ltd,3434292,"76,088.33",Optional requirement only,0
Department of Health,Imperial College Healthcare NHS Trust,10/01/2017,It Eqpt-Additions,Capital Summary,Sdx Services Ltd,3434364,"57,638.40",Optional requirement only,0
Department of Health,Imperial College Healthcare NHS Trust,10/01/2017,It Eqpt-Additions,Capital Summary,Sdx Services Ltd,3495678,"75,214.81",Optional requirement only,0
Department of Health,Imperial College Healthcare NHS Trust,10/01/2017,It Eqpt-Additions,Capital Summary,Sdx Services Ltd,3495692,"94,009.20",Optional requirement only,0
Department of Health,Imperial College Healthcare NHS Trust,10/01/2017,Jac - Stock,Stock,Bayer Plc,3494738,"97,538.40",Optional requirement only,Stock
Department of Health,Imperial College Healthcare NHS Trust,10/01/2017,Laboratory Test Kits,Pathology,Becton Dickinson Uk Ltd,3495546,"107,199.23",Optional requirement only,0
Department of Health,Imperial College Healthcare NHS Trust,10/01/2017,Laboratory Test Kits,Pathology,Becton Dickinson Uk Ltd,3495547,"65,004.54",Optional requirement only,0
Department of Health,Imperial College Healthcare NHS Trust,10/01/2017,Lease Rents,Div Of Med & Integrated Care,Nhs Property Services Ltd,3490237,"280,851.80",Optional requirement only,0
Department of Health,Imperial College Healthcare NHS Trust,10/01/2017,Lloyds Resale Of Drugs,Div Of Women & Clin Support,Lloyds Retail Chemists Ltd,3496211,"3,502,537.15",Optional requirement only,0
Department of Health,Imperial College Healthcare NHS Trust,10/01/2017,Med & Prof Fees (Imaging Cons),Ichnt Balance Sheet,Lindo Wing Radiology Llp,3496020,"91,295.25",Optional requirement only,0
Department of Health,Imperial College Healthcare NHS Trust,10/01/2017,Postage & Carriage,Div Of Women & Clin Support,Xerox (Uk) Ltd,3495283,"35,463.95",Optional requirement only,0
Department of Health,Imperial College Healthcare NHS Trust,10/01/2017,Rent,Nursing Directorate,Nhs Property Services Ltd,3490519,"27,002.41",Optional requirement only,0
Department of Health,Imperial College Healthcare NHS Trust,10/01/2017,Rent,Nursing Directorate,Nhs Property Services Ltd,3490698,"53,842.00",Optional requirement only,0
Department of Health,Imperial College Healthcare NHS Trust,10/01/2017,Rent,Nursing Directorate,Nhs Property Services Ltd,3490700,"51,096.63",Optional requirement only,0
Department of Health,Imperial College Healthcare NHS Trust,10/01/2017,Rent,Nursing Directorate,Thames Valley Charitable Housing,3495685,"42,028.72",Optional requirement only,0
Department of Health,Imperial College Healthcare NHS Trust,10/01/2017,Stents,"Div Of Surg, Cardiov & Cancer",Bolton Medical S.L.U.,3495545,"30,800.00",Optional requirement only,0
Department of Health,Imperial College Healthcare NHS Trust,12/01/2017,Agency Scient & Prof Qualified,Pathology,Reed,3498313,"46,497.00",Optional requirement only,0
Department of Health,Imperial College Healthcare NHS Trust,12/01/2017,Blood Products,Pathology,Nhs Blood And Transplant,3490731,"60,345.25",Optional requirement only,0
Department of Health,Imperial College Healthcare NHS Trust,12/01/2017,Buildings-Additions-Purchased,Capital Summary,Logan Construction (Se) Ltd,3492497,"79,914.50",Optional requirement only,0
Department of Health,Imperial College Healthcare NHS Trust,12/01/2017,Buildings-Additions-Purchased,Capital Summary,Logan Construction (Se) Ltd,3498569,"141,818.41",Optional requirement only,0
Department of Health,Imperial College Healthcare NHS Trust,12/01/2017,Buildings-Additions-Purchased,Capital Summary,Playfords Limited,3498305,"78,305.75",Optional requirement only,0
Department of Health,Imperial College Healthcare NHS Trust,12/01/2017,Buildings-Additions-Purchased,Capital Summary,Williams Building Company (22) Limited,3488688,"103,815.60",Optional requirement only,0
Department of Health,Imperial College Healthcare NHS Trust,12/01/2017,Clinical Managed Service Contr,"Div Of Surg, Cardiov & Cancer",Medtronic Ltd,3498572,"256,249.88",Optional requirement only,0
Department of Health,Imperial College Healthcare NHS Trust,12/01/2017,Ext Contract - Patient Travel,Div Of Med & Integrated Care,Dhl Supply Chain  (Former Excel),3490753,"768,290.65",Optional requirement only,0
Department of Health,Imperial College Healthcare NHS Trust,12/01/2017,Ext Contract - Patient Travel,"Div Of Surg, Cardiov & Cancer",Dhl Supply Chain  (Former Excel),3490753,"218,642.58",Optional requirement only,0
Department of Health,Imperial College Healthcare NHS Trust,12/01/2017,Ext Contract - Patient Travel,Finance Directorate,Dhl Supply Chain  (Former Excel),3490753,"42,396.15",Optional requirement only,0
Department of Health,Imperial College Healthcare NHS Trust,12/01/2017,It Eqpt-Additions,Capital Summary,Block Solutions Ltd,3486571,"345,283.62",Optional requirement only,0
Department of Health,Imperial College Healthcare NHS Trust,12/01/2017,Jac - Stock,Stock,Roche Products Ltd,3491398,"71,041.19",Optional requirement only,Stock
Department of Health,Imperial College Healthcare NHS Trust,12/01/2017,Other Transport Costs,Pathology,Dhl Supply Chain  (Former Excel),3486578,"78,951.28",Optional requirement only,0
Department of Health,Imperial College Healthcare NHS Trust,12/01/2017,P & M-Additions-Purchased,Capital Summary,B Braun Avitum Ltd,3498515,"92,160.00",Optional requirement only,0
Department of Health,Imperial College Healthcare NHS Trust,12/01/2017,P & M-Additions-Purchased,Capital Summary,B Braun Avitum Ltd,3498517,"43,020.00",Optional requirement only,0
Department of Health,Imperial College Healthcare NHS Trust,12/01/2017,P & M-Additions-Purchased,Capital Summary,B Braun Avitum Ltd,3498519,"40,200.00",Optional requirement only,0
Department of Health,Imperial College Healthcare NHS Trust,12/01/2017,P & M-Additions-Purchased,Capital Summary,B Braun Avitum Ltd,3498520,"34,560.00",Optional requirement only,0
Department of Health,Imperial College Healthcare NHS Trust,12/01/2017,P & M-Additions-Purchased,Capital Summary,B Braun Avitum Ltd,3498521,"69,120.00",Optional requirement only,0
Department of Health,Imperial College Healthcare NHS Trust,12/01/2017,P & M-Additions-Purchased,Capital Summary,Eschmann Holding Ltd,3495607,"64,096.80",Optional requirement only,0
Department of Health,Imperial College Healthcare NHS Trust,16/01/2017,Rates,Nursing Directorate,City Of Westminster,3499589,"119,944.00",Optional requirement only,0
Department of Health,Imperial College Healthcare NHS Trust,17/01/2017,Buildings-Additions-Purchased,Capital Summary,D.Williams Carpentry & Building Ltd,3490113,"30,000.00",Optional requirement only,0
Department of Health,Imperial College Healthcare NHS Trust,17/01/2017,Buildings-Add(Prof Fee)-Purch,Capital Summary,Aecom,3492802,"49,763.34",Optional requirement only,0
Department of Health,Imperial College Healthcare NHS Trust,17/01/2017,Computer Software/License,Information & Comms Technology,Cerner Uk Ltd,3501314,"281,540.87",Optional requirement only,0
Department of Health,Imperial College Healthcare NHS Trust,17/01/2017,Consultancy Fees,Finance Directorate,Pricewaterhousecoopers Llp,3500171,"162,930.00",Optional requirement only,0
Department of Health,Imperial College Healthcare NHS Trust,17/01/2017,Ext Contract Portering,Nursing Directorate,Sodexo Limited,3501577,"442,637.85",Optional requirement only,0
Department of Health,Imperial College Healthcare NHS Trust,17/01/2017,Ext Contr Catering,Nursing Directorate,Sodexo Limited,3501577,"606,001.95",Optional requirement only,0
Department of Health,Imperial College Healthcare NHS Trust,17/01/2017,Ext Contr Domestics,Nursing Directorate,Sodexo Limited,3501577,"1,178,824.50",Optional requirement only,0
Department of Health,Imperial College Healthcare NHS Trust,17/01/2017,Ext Contr Oth Hotel Srv,Nursing Directorate,Sodexo Limited,3501577,"87,643.97",Optional requirement only,0
Department of Health,Imperial College Healthcare NHS Trust,17/01/2017,Hearing Aids: Purchase,"Div Of Surg, Cardiov & Cancer",Oticon Ltd,3492792,"36,452.33",Optional requirement only,0
Department of Health,Imperial College Healthcare NHS Trust,17/01/2017,Jac - Stock,Stock,Alexion Pharma Uk Ltd,3499784,"52,920.00",Optional requirement only,Stock
Department of Health,Imperial College Healthcare NHS Trust,17/01/2017,Jac - Stock,Stock,Csl Behring Uk Ltd,3499742,"27,900.00",Optional requirement only,Stock
Department of Health,Imperial College Healthcare NHS Trust,17/01/2017,Jac - Stock,Stock,Csl Behring Uk Ltd,3499748,"27,900.00",Optional requirement only,Stock
Department of Health,Imperial College Healthcare NHS Trust,17/01/2017,Jac - Stock,Stock,Genzyme Therapeutics Ltd,3499630,"338,160.00",Optional requirement only,Stock
Department of Health,Imperial College Healthcare NHS Trust,17/01/2017,Lease Rents,Div Of Med & Integrated Care,Nhs Property Services Ltd,3500799,"246,031.26",Optional requirement only,0
Department of Health,Imperial College Healthcare NHS Trust,17/01/2017,Lease Rents,Nursing Directorate,London Borough Of Hammersmith/Fulham,3498251,"96,390.59",Optional requirement only,0
Department of Health,Imperial College Healthcare NHS Trust,17/01/2017,Nhs Pay Recharge In: Med,Div Of Women & Clin Support,Great Ormond Street Hospital For Children,3501265,"28,732.50",Optional requirement only,0
Department of Health,Imperial College Healthcare NHS Trust,17/01/2017,Organ Donor Expenses,Div Of Women & Clin Support,The Anthony Nolan Trust,3501275,"39,669.05",Optional requirement only,0
Department of Health,Imperial College Healthcare NHS Trust,17/01/2017,Services Received - Nhsts,Div Of Women & Clin Support,Ivf Hammersmith Ltd,3501270,"60,000.00",Optional requirement only,0
Department of Health,Imperial College Healthcare NHS Trust,18/01/2017,Income Tax Paye,Ichnt Balance Sheet,Hmrc Government Employers Account,3502029,"12,954,627.09",Optional requirement only,0
Department of Health,Imperial College Healthcare NHS Trust,19/01/2017,Buildings-Additions-Purchased,Capital Summary,Alarm Communication Limited,3503028,"48,031.68",Optional requirement only,0
Department of Health,Imperial College Healthcare NHS Trust,19/01/2017,Buildings-Additions-Purchased,Capital Summary,Howard Electrical Ltd,3503419,"46,456.80",Optional requirement only,0
Department of Health,Imperial College Healthcare NHS Trust,19/01/2017,Buildings-Additions-Purchased,Capital Summary,M&J Group (Construction & Roofin) Ltd [Cs],3503426,"57,824.70",Optional requirement only,0
Department of Health,Imperial College Healthcare NHS Trust,19/01/2017,Contr Photocopier Rental,Information & Comms Technology,Canon (Uk) Ltd,3502836,"199,710.02",Optional requirement only,0
Department of Health,Imperial College Healthcare NHS Trust,19/01/2017,Electricity,Nursing Directorate,Edf Energy Customer Plc,3498324,"92,664.19",Optional requirement only,0
Department of Health,Imperial College Healthcare NHS Trust,19/01/2017,Electricity,Nursing Directorate,Edf Energy Customer Plc,3498325,"247,764.86",Optional requirement only,0
Department of Health,Imperial College Healthcare NHS Trust,19/01/2017,Electricity,Nursing Directorate,Edf Energy Customer Plc,3498328,"37,762.03",Optional requirement only,0
Department of Health,Imperial College Healthcare NHS Trust,19/01/2017,Ext Contr Logistics,Finance Directorate,Dhl Supply Chain  (Former Excel),3503436,"140,446.18",Optional requirement only,0
Department of Health,Imperial College Healthcare NHS Trust,19/01/2017,Ext Contr Logistics,Finance Directorate,Dhl Supply Chain  (Former Excel),3503437,"140,446.18",Optional requirement only,0
Department of Health,Imperial College Healthcare NHS Trust,19/01/2017,Ic Library Expenditure,Medical Director Summary,Imperial College London,3500808,"92,131.00",Optional requirement only,0
Department of Health,Imperial College Healthcare NHS Trust,19/01/2017,Jac - Stock,Stock,Baxter Healthcare Ltd,3502920,"30,008.04",Optional requirement only,Stock
Department of Health,Imperial College Healthcare NHS Trust,19/01/2017,Jac - Stock,Stock,Baxter Healthcare Ltd,3502921,"33,217.20",Optional requirement only,Stock
Department of Health,Imperial College Healthcare NHS Trust,19/01/2017,Jac - Stock,Stock,Janssen-Cilag Ltd,3498747,"69,136.02",Optional requirement only,Stock
Department of Health,Imperial College Healthcare NHS Trust,19/01/2017,Jac - Stock,Stock,Novartis Pharmaceutical (Uk) Ltd,3498792,"57,163.68",Optional requirement only,Stock
Department of Health,Imperial College Healthcare NHS Trust,19/01/2017,Jac - Stock,Stock,Roche Products Ltd,3503007,"132,019.80",Optional requirement only,Stock
Department of Health,Imperial College Healthcare NHS Trust,19/01/2017,Non-Nhs Pay Recharge In: Med,Div Of Med & Integrated Care,London Central & West Unscheduled Care Collab,3502838,"353,229.31",Optional requirement only,0
Department of Health,Imperial College Healthcare NHS Trust,19/01/2017,Other Research Exp - Pay,Rd Medicine Division,Imperial College London,3494153,"38,670.48",Optional requirement only,0
Department of Health,Imperial College Healthcare NHS Trust,19/01/2017,Other Research Exp - Pay,Rd Medicine Division,Imperial College London,3494156,"29,625.56",Optional requirement only,0
Department of Health,Imperial College Healthcare NHS Trust,19/01/2017,Other Research Exp - Pay,Rd Medicine Division,Imperial College London,3494158,"33,642.48",Optional requirement only,0
Department of Health,Imperial College Healthcare NHS Trust,19/01/2017,Programme Support Costs,Office Of Chief Executive,Imperial College London,3502678,"168,482.89",Optional requirement only,0
Department of Health,Imperial College Healthcare NHS Trust,19/01/2017,Purch Hcare Independent Sector,Div Of Women & Clin Support,Ivf Hammersmith Ltd,3502683,"37,752.00",Optional requirement only,0
Department of Health,Imperial College Healthcare NHS Trust,19/01/2017,Purch Hcare Independent Sector,Div Of Women & Clin Support,Ivf Hammersmith Ltd,3502685,"49,572.00",Optional requirement only,0
Department of Health,Imperial College Healthcare NHS Trust,19/01/2017,Purch Hcare Independent Sector,Div Of Women & Clin Support,Ivf Hammersmith Ltd,3502686,"32,121.00",Optional requirement only,0
Department of Health,Imperial College Healthcare NHS Trust,19/01/2017,Rent,Human Resources,Imperial College Healthcare Charity,3502699,"50,000.00",Optional requirement only,0
Department of Health,Imperial College Healthcare NHS Trust,19/01/2017,Rent,Human Resources,Imperial College Healthcare Charity,3502702,"50,000.00",Optional requirement only,0
Department of Health,Imperial College Healthcare NHS Trust,19/01/2017,Supplies Issues Recharges,Stock,Nhs Supply Chain,3495630,"120,588.86",Optional requirement only,Stock
Department of Health,Imperial College Healthcare NHS Trust,19/01/2017,Supplies Issues Recharges,Stock,Nhs Supply Chain,3495632,"178,921.78",Optional requirement only,Stock
Department of Health,Imperial College Healthcare NHS Trust,19/01/2017,Supplies Issues Recharges,Stock,Nhs Supply Chain,3495635,"113,884.56",Optional requirement only,Stock
Department of Health,Imperial College Healthcare NHS Trust,19/01/2017,Supplies Issues Recharges,Stock,Nhs Supply Chain,3495636,"146,621.66",Optional requirement only,Stock
Department of Health,Imperial College Healthcare NHS Trust,19/01/2017,Supplies Issues Recharges,Stock,Nhs Supply Chain,3495637,"145,943.57",Optional requirement only,Stock
Department of Health,Imperial College Healthcare NHS Trust,19/01/2017,Supplies Issues Recharges,Stock,Nhs Supply Chain,3498442,"94,353.04",Optional requirement only,Stock
Department of Health,Imperial College Healthcare NHS Trust,19/01/2017,Supplies Issues Recharges,Stock,Nhs Supply Chain,3499379,"83,810.73",Optional requirement only,Stock
Department of Health,Imperial College Healthcare NHS Trust,19/01/2017,Supplies Issues Recharges,Stock,Nhs Supply Chain,3499380,"46,519.84",Optional requirement only,Stock
Department of Health,Imperial College Healthcare NHS Trust,19/01/2017,Supplies Issues Recharges,Stock,Nhs Supply Chain,3501354,"71,295.80",Optional requirement only,Stock
Department of Health,Imperial College Healthcare NHS Trust,19/01/2017,Supplies Issues Recharges,Stock,Nhs Supply Chain,3501357,"84,727.10",Optional requirement only,Stock
Department of Health,Imperial College Healthcare NHS Trust,19/01/2017,Supplies Issues Recharges,Stock,Nhs Supply Chain,3501360,"86,206.60",Optional requirement only,Stock
Department of Health,Imperial College Healthcare NHS Trust,19/01/2017,Supplies Issues Recharges,Stock,Nhs Supply Chain,3503540,"57,290.25",Optional requirement only,Stock
Department of Health,Imperial College Healthcare NHS Trust,24/01/2017,Computer Software/License,Div Of Women & Clin Support,Astraia Software Gmbh,3505140,"33,083.04",Optional requirement only,0
Department of Health,Imperial College Healthcare NHS Trust,24/01/2017,Consultancy Fees,Finance Directorate,Crs Vat Consulting Ltd,3505416,"33,935.68",Optional requirement only,0
Department of Health,Imperial College Healthcare NHS Trust,24/01/2017,Ext Contract Portering,Nursing Directorate,Sodexo Limited,3505257,"442,637.85",Optional requirement only,0
Department of Health,Imperial College Healthcare NHS Trust,24/01/2017,Ext Contr Catering,Nursing Directorate,Sodexo Limited,3505257,"606,001.95",Optional requirement only,0
Department of Health,Imperial College Healthcare NHS Trust,24/01/2017,Ext Contr Domestics,Nursing Directorate,Sodexo Limited,3505257,"1,178,824.50",Optional requirement only,0
Department of Health,Imperial College Healthcare NHS Trust,24/01/2017,Ext Contr Oth Hotel Srv,Nursing Directorate,Sodexo Limited,3505257,"87,643.97",Optional requirement only,0
Department of Health,Imperial College Healthcare NHS Trust,24/01/2017,Jac - Stock,Stock,Qualasept Ltd,3501591,"149,184.00",Optional requirement only,Stock
Department of Health,Imperial College Healthcare NHS Trust,24/01/2017,P & M-Additions-Purchased,Capital Summary,Advantech Surgical Ltd,3505457,"36,340.58",Optional requirement only,0
Department of Health,Imperial College Healthcare NHS Trust,26/01/2017,Bldg/Eng Equip Maint/Rep,Nursing Directorate,Cbre Managed Services Ltd,3507309,"167,408.35",Optional requirement only,0
Department of Health,Imperial College Healthcare NHS Trust,26/01/2017,Buildings-Additions-Purchased,Capital Summary,Cbre Managed Services Ltd,3507309,"89,781.17",Optional requirement only,0
Department of Health,Imperial College Healthcare NHS Trust,26/01/2017,Clinical Managed Service Contr,"Div Of Surg, Cardiov & Cancer",Medtronic Ltd,3506764,"1,241,503.87",Optional requirement only,0
Department of Health,Imperial College Healthcare NHS Trust,26/01/2017,Clinical Managed Service Contr,Pathology,Genmed.Me Ltd,3505568,"140,534.33",Optional requirement only,0
Department of Health,Imperial College Healthcare NHS Trust,26/01/2017,Dist Award - Local Cea,Div Of Med & Integrated Care,Imperial College London,3507310,"45,401.24",Optional requirement only,0
Department of Health,Imperial College Healthcare NHS Trust,26/01/2017,Dist Award - Nat Cea,Div Of Med & Integrated Care,Imperial College London,3507310,"82,008.97",Optional requirement only,0
Department of Health,Imperial College Healthcare NHS Trust,26/01/2017,Dist Award - Nat Cea,"Div Of Surg, Cardiov & Cancer",Imperial College London,3507310,"77,445.18",Optional requirement only,0
Department of Health,Imperial College Healthcare NHS Trust,26/01/2017,Dist Award - Nat Cea,Div Of Women & Clin Support,Imperial College London,3507310,"55,280.60",Optional requirement only,0
Department of Health,Imperial College Healthcare NHS Trust,26/01/2017,Dist Award - Nat Cea,Medical Director Summary,Imperial College London,3507310,"28,524.67",Optional requirement only,0
Department of Health,Imperial College Healthcare NHS Trust,26/01/2017,Ext Contr Catering,Private Patients Directorate,Sodexo Limited,3506128,"165,075.94",Optional requirement only,0
Department of Health,Imperial College Healthcare NHS Trust,26/01/2017,Ext Contr Catering,Private Patients Directorate,Sodexo Limited,3506129,"165,075.94",Optional requirement only,0
Department of Health,Imperial College Healthcare NHS Trust,26/01/2017,Ext Contr Catering,Private Patients Directorate,Sodexo Limited,3506131,"165,075.94",Optional requirement only,0
Department of Health,Imperial College Healthcare NHS Trust,26/01/2017,Ic Library Expenditure,Medical Director Summary,Imperial College London,3505793,"92,131.00",Optional requirement only,0
Department of Health,Imperial College Healthcare NHS Trust,26/01/2017,Ic Pay Recharge In: Med,Div Of Med & Integrated Care,Imperial College London,3507310,"201,274.74",Optional requirement only,0
Department of Health,Imperial College Healthcare NHS Trust,26/01/2017,Ic Pay Recharge In: Med,"Div Of Surg, Cardiov & Cancer",Imperial College London,3507310,"334,557.90",Optional requirement only,0
Department of Health,Imperial College Healthcare NHS Trust,26/01/2017,Ic Pay Recharge In: Med,"Div Of Surg, Cardiov & Cancer",Imperial College London,3507311,"26,569.02",Optional requirement only,0
Department of Health,Imperial College Healthcare NHS Trust,26/01/2017,Ic Pay Recharge In: Med,Div Of Women & Clin Support,Imperial College London,3507310,"103,870.06",Optional requirement only,0
Department of Health,Imperial College Healthcare NHS Trust,42761,Ic Pay Recharge In: Med,Pathology,Imperial College London,3507310,33745.54,Optional requirement only,0
Department of Health,Imperial College Healthcare NHS Trust,42761,Jac - Stock,Stock,Csl Behring Uk Ltd,3498859,76167,Optional requirement only,Stock
Department of Health,Imperial College Healthcare NHS Trust,42761,Laboratory Chemicals/ Reagents,Pathology,Becton Dickinson Uk Ltd,3505966,1336458.36,Optional requirement only,0
Department of Health,Imperial College Healthcare NHS Trust,42761,Minor Works,Nursing Directorate,Cbre Managed Services Ltd,3507309,42913.69,Optional requirement only,0
Department of Health,Imperial College Healthcare NHS Trust,42761,Other Research Exp - Non-Pay,Rd Surgery & Cancer Division,Imperial College London,3505796,34244.26,Optional requirement only,0
Department of Health,Imperial College Healthcare NHS Trust,42761,Other Research Exp - Pay,Rd Medical Directorate,Imperial College London,3505791,104028.31,Optional requirement only,0
Department of Health,Imperial College Healthcare NHS Trust,42761,Other Research Exp - Pay,Rd Medical Directorate,Imperial College London,3505795,25285.55,Optional requirement only,0
Department of Health,Imperial College Healthcare NHS Trust,42761,Other Research Exp - Pay,Rd Medical Directorate,Imperial College London,3505797,33250.53,Optional requirement only,0
Department of Health,Imperial College Healthcare NHS Trust,42761,Other Research Exp - Pay,Rd Medical Directorate,Imperial College London,3505812,69154.7,Optional requirement only,0
Department of Health,Imperial College Healthcare NHS Trust,42761,Other Research Exp - Pay,Rdwomen And Children Division,Imperial College London,3505800,49924.71,Optional requirement only,0
Department of Health,Imperial College Healthcare NHS Trust,42761,P & M-Additions-Purchased,Capital Summary,Fuji Film Uk Limited,3505576,143988.6,Optional requirement only,0
Department of Health,Imperial College Healthcare NHS Trust,42761,Purch Hcare Independent Sector,Div Of Women & Clin Support,Ivf Hammersmith Ltd,3506124,114796,Optional requirement only,0
Department of Health,Imperial College Healthcare NHS Trust,42761,Sewerage,Nursing Directorate,Thames Water Utilities Limited,3506302,39578.61,Optional requirement only,0
Department of Health,Imperial College Healthcare NHS Trust,42761,Sewerage,Nursing Directorate,Thames Water Utilities Limited,3506304,25305.19,Optional requirement only,0
Department of Health,Imperial College Healthcare NHS Trust,42761,Water,Nursing Directorate,Thames Water Utilities Limited,3506305,209515.21,Optional requirement only,0
Department of Health,Imperial College Healthcare NHS Trust,42762,Audit Fees: Internal,Finance Directorate,Tiaa Ltd,3499573,32064,Optional requirement only,0
Department of Health,Imperial College Healthcare NHS Trust,42762,Buildings-Additions-Purchased,Capital Summary,M&J Group (Construction & Roofin) Ltd [Cs],3503435,52346.28,Optional requirement only,0
Department of Health,Imperial College Healthcare NHS Trust,42762,Car Salary Sacrifice,Ichnt Balance Sheet,Tuskerdirect Ltd,3498671,33158.44,Optional requirement only,0
Department of Health,Imperial College Healthcare NHS Trust,42762,Clinical Managed Service Contr,Pathology,Abbott Laboratories Ltd,3505545,173924.7,Optional requirement only,0
Department of Health,Imperial College Healthcare NHS Trust,42762,Clinical Managed Service Contr,Pathology,Abbott Laboratories Ltd,3505546,515126.41,Optional requirement only,0
Department of Health,Imperial College Healthcare NHS Trust,42762,Computer Software/License,Information & Comms Technology,Cerner Uk Ltd,3502688,152430,Optional requirement only,0
Department of Health,Imperial College Healthcare NHS Trust,42762,Computer Software/License,Information & Comms Technology,Cerner Uk Ltd,3502691,152430,Optional requirement only,0
Department of Health,Imperial College Healthcare NHS Trust,42762,Dialysers,Div Of Med & Integrated Care,Baxter Healthcare Ltd,3507970,96189.77,Optional requirement only,0
Department of Health,Imperial College Healthcare NHS Trust,42762,Drugs Pbr Excluded,"Div Of Surg, Cardiov & Cancer",Healthcare At Home Ltd,3507825,30800,Optional requirement only,0
Department of Health,Imperial College Healthcare NHS Trust,42762,Drugs Pbr Excluded,"Div Of Surg, Cardiov & Cancer",Healthcare At Home Ltd,3507826,29600,Optional requirement only,0
Department of Health,Imperial College Healthcare NHS Trust,42762,Gas,Nursing Directorate,Corona Energy,3505581,66907.88,Optional requirement only,0
Department of Health,Imperial College Healthcare NHS Trust,42762,Gas,Nursing Directorate,Corona Energy,3505589,61721.28,Optional requirement only,0
Department of Health,Imperial College Healthcare NHS Trust,42762,Gas,Nursing Directorate,Corona Energy,3505599,145611.29,Optional requirement only,0
Department of Health,Imperial College Healthcare NHS Trust,42762,Gas,Nursing Directorate,Corona Energy,3505602,88391.21,Optional requirement only,0
Department of Health,Imperial College Healthcare NHS Trust,42762,Jac - Stock,Stock,Qualasept Ltd,3504520,149184,Optional requirement only,Stock
Department of Health,Imperial College Healthcare NHS Trust,42762,Jac - Stock,Stock,Roche Products Ltd,3504552,35035.96,Optional requirement only,Stock
Department of Health,Imperial College Healthcare NHS Trust,42762,Med & Surg Equip Repair,Nursing Directorate,Ge Medical Systems Limited,3494102,773427.6,Optional requirement only,0
Department of Health,Imperial College Healthcare NHS Trust,42762,Other Gen Supplies & Srv,Information & Comms Technology,Crown Records Management,3501286,38753.84,Optional requirement only,0
Department of Health,Imperial College Healthcare NHS Trust,42762,Other Research Exp - Pay,Rd Medicine Division,Imperial College London,3507974,56878.81,Optional requirement only,0
Department of Health,Imperial College Healthcare NHS Trust,42762,Other Research Exp - Pay,Rdwomen And Children Division,Imperial College London,3505805,40254.45,Optional requirement only,0
Department of Health,Imperial College Healthcare NHS Trust,42762,Other Research Exp - Pay,Rdwomen And Children Division,Imperial College London,3507817,54826.59,Optional requirement only,0
Department of Health,Imperial College Healthcare NHS Trust,42762,Other Research Exp - Pay,Rdwomen And Children Division,Imperial College London,3507819,62138.79,Optional requirement only,0
Department of Health,Imperial College Healthcare NHS Trust,42762,Purch Hcare Independent Sector,"Div Of Surg, Cardiov & Cancer",Parkside Hospital,3507995,30375,Optional requirement only,0
Department of Health,Imperial College Healthcare NHS Trust,42762,Purch Hcare Independent Sector,"Div Of Surg, Cardiov & Cancer",Parkside Hospital,3507999,60750,Optional requirement only,0
Department of Health,Imperial College Healthcare NHS Trust,42762,Rent,Div Of Med & Integrated Care,London North West Healthcare Nhs Trust,3507809,55308.27,Optional requirement only,0
Department of Health,Imperial College Healthcare NHS Trust,42762,Rent,Div Of Med & Integrated Care,London North West Healthcare Nhs Trust,3507811,55308.27,Optional requirement only,0
Department of Health,Imperial College Healthcare NHS Trust,42762,Rent,Div Of Med & Integrated Care,London North West Healthcare Nhs Trust,3507812,55308.27,Optional requirement only,0
Department of Health,Imperial College Healthcare NHS Trust,42762,Services Received - Nhsts,Div Of Med & Integrated Care,London North West Healthcare Nhs Trust,3507807,40970.21,Optional requirement only,0
Department of Health,Imperial College Healthcare NHS Trust,42762,Services Received - Nhsts,Div Of Med & Integrated Care,London North West Healthcare Nhs Trust,3507808,40970.21,Optional requirement only,0
Department of Health,Imperial College Healthcare NHS Trust,42762,Services Received - Nhsts,Div Of Med & Integrated Care,London North West Healthcare Nhs Trust,3507810,59814.31,Optional requirement only,0
Department of Health,Imperial College Healthcare NHS Trust,42762,Services Received - Nhsts,Div Of Med & Integrated Care,London North West Healthcare Nhs Trust,3507813,82637.88,Optional requirement only,0
Department of Health,Imperial College Healthcare NHS Trust,42762,Services Received - Nhsts,Div Of Med & Integrated Care,London North West Healthcare Nhs Trust,3507814,59814.31,Optional requirement only,0
Department of Health,Imperial College Healthcare NHS Trust,42762,Services Received - Nhsts,Div Of Med & Integrated Care,London North West Healthcare Nhs Trust,3507815,186588.72,Optional requirement only,0
Department of Health,Imperial College Healthcare NHS Trust,42762,Services Received - Nhsts,Div Of Med & Integrated Care,London North West Healthcare Nhs Trust,3507816,40970.21,Optional requirement only,0
Department of Health,Imperial College Healthcare NHS Trust,42763,Supplies Issues Recharges,Stock,Nhs Supply Chain,3507968,135191.9,Optional requirement only,Stock
Department of Health,Imperial College Healthcare NHS Trust,42763,Supplies Issues Recharges,Stock,Nhs Supply Chain,3507969,157619.27,Optional requirement only,Stock
Department of Health,Imperial College Healthcare NHS Trust,42763,Supplies Issues Recharges,Stock,Nhs Supply Chain,3507971,103239.62,Optional requirement only,Stock
Department of Health,Imperial College Healthcare NHS Trust,42763,Supplies Issues Recharges,Stock,Nhs Supply Chain,3507972,106981.71,Optional requirement only,Stock
Department of Health,Imperial College Healthcare NHS Trust,42763,Supplies Issues Recharges,Stock,Nhs Supply Chain,3507975,100660.06,Optional requirement only,Stock
Department of Health,Imperial College Healthcare NHS Trust,42763,Supplies Issues Recharges,Stock,Nhs Supply Chain,3507976,150758.86,Optional requirement only,Stock
Department of Health,Imperial College Healthcare NHS Trust,42763,Supplies Issues Recharges,Stock,Nhs Supply Chain,3507977,151325.97,Optional requirement only,Stock
Department of Health,Imperial College Healthcare NHS Trust,42763,Supplies Issues Recharges,Stock,Nhs Supply Chain,3507978,197583.56,Optional requirement only,Stock
Department of Health,Imperial College Healthcare NHS Trust,42763,Supplies Issues Recharges,Stock,Nhs Supply Chain,3507979,131034.16,Optional requirement only,Stock
Department of Health,Imperial College Healthcare NHS Trust,42765,Childcare Voucher (Kids Unltd),Childcare Vouchers,Sodexo Motivation Solutions Uk Ltd,3507774,72510.49,Optional requirement only,Childcare Vouchers
Department of Health,Imperial College Healthcare NHS Trust,42765,Interpreting Services,Div Of Women & Clin Support,Pearl Linguistics Ltd,3492892,41665.56,Optional requirement only,0
Department of Health,Imperial College Healthcare NHS Trust,42765,Med & Surg Maint Contract,"Div Of Surg, Cardiov & Cancer",Intuitive Surgical Sarl,3484638,140000,Optional requirement only,0
,,,,,,Sum:,57124704.35,,
,,,,,Count:,233,,,
